[Event "*** Titled Tuesday Blitz"]
[Site "Chess.com"]
[Date "2020.05.12"]
[Round "3"]
[White "ALeks_Ivlev"]
[Black "PotapovaM"]
[Result "1/2-1/2"]
[WhiteElo "2591"]
[BlackElo "2400"]
[TimeControl "180+1"]
[EndTime "10:31:08 PDT"]
[Termination "Game drawn by repetition"]

1. d4 {[%clk 0:03:00.9]} 1... Nf6 {[%clk 0:03:00.2]} 2. c4 {[%clk 0:03:00.5]}
2... e6 {[%clk 0:03:00.6]} 3. g3 {[%clk 0:03:00.3]} 3... d5 {[%clk 0:02:59.1]}
4. Nf3 {[%clk 0:03:00.6]} 4... dxc4 {[%clk 0:02:58.4]} 5. Bg2 {[%clk 0:03:00.1]}
5... a6 {[%clk 0:02:59]} 6. O-O {[%clk 0:02:52.5]} 6... Nc6 {[%clk 0:02:59.2]}
7. e3 {[%clk 0:02:51.2]} 7... Rb8 {[%clk 0:02:59.3]} 8. Nfd2 {[%clk 0:02:50.5]}
8... e5 {[%clk 0:02:59.7]} 9. Nxc4 {[%clk 0:02:48.1]} 9... exd4 {[%clk
0:02:45.2]} 10. Bxc6+ {[%clk 0:02:47.4]} 10... bxc6 {[%clk 0:02:46.1]} 11. Qxd4
{[%clk 0:02:48.2]} 11... Qxd4 {[%clk 0:02:30.2]} 12. exd4 {[%clk 0:02:49.1]}
12... Be6 {[%clk 0:02:19.5]} 13. b3 {[%clk 0:02:22.4]} 13... c5 {[%clk
0:02:18.7]} 14. dxc5 {[%clk 0:02:11.2]} 14... Bxc5 {[%clk 0:02:19.6]} 15. Bf4
{[%clk 0:02:10.8]} 15... Bd4 {[%clk 0:02:14.6]} 16. Bxc7 {[%clk 0:02:05.5]}
16... Ra8 {[%clk 0:02:11.5]} 17. Be5 {[%clk 0:01:58.7]} 17... Bxa1 {[%clk
0:02:10.5]} 18. Bxa1 {[%clk 0:01:58]} 18... O-O {[%clk 0:02:11.1]} 19. Nbd2
{[%clk 0:01:57.4]} 19... Rfd8 {[%clk 0:02:07.9]} 20. Re1 {[%clk 0:01:55.9]}
20... a5 {[%clk 0:02:04.7]} 21. a4 {[%clk 0:01:53.3]} 21... Rab8 {[%clk
0:01:57.1]} 22. Bc3 {[%clk 0:01:50.7]} 22... Bxc4 {[%clk 0:01:40.3]} 23. bxc4
{[%clk 0:01:04.1]} 23... Rd3 {[%clk 0:01:12.9]} 24. Bxa5 {[%clk 0:00:59.4]}
24... Ra3 {[%clk 0:01:05.8]} 25. Bc7 {[%clk 0:00:40]} 25... Rc8 {[%clk
0:01:05.7]} 26. Bd6 {[%clk 0:00:36.2]} 26... Rxa4 {[%clk 0:00:54.9]} 27. c5
{[%clk 0:00:36.1]} 27... h6 {[%clk 0:00:49.2]} 28. Nf3 {[%clk 0:00:35.7]} 28...
Rc4 {[%clk 0:00:42.4]} 29. Re7 {[%clk 0:00:32.9]} 29... Re4 {[%clk 0:00:37]} 30.
Ra7 {[%clk 0:00:29.9]} 30... Ne8 {[%clk 0:00:28.2]} 31. Kg2 {[%clk 0:00:29.7]}
31... Nxd6 {[%clk 0:00:25.2]} 32. cxd6 {[%clk 0:00:29.6]} 32... Rd8 {[%clk
0:00:25.2]} 33. d7 {[%clk 0:00:27.5]} 33... Re7 {[%clk 0:00:25]} 34. h4 {[%clk
0:00:24.6]} 34... Rexd7 {[%clk 0:00:25.1]} 35. Ra6 {[%clk 0:00:25.2]} 35... Rd6
{[%clk 0:00:25]} 36. Ra5 {[%clk 0:00:25]} 36... g6 {[%clk 0:00:22.6]} 37. Kh3
{[%clk 0:00:23.5]} 37... Rf6 {[%clk 0:00:20.9]} 38. Ra3 {[%clk 0:00:20.2]} 38...
Kg7 {[%clk 0:00:20.6]} 39. Kg2 {[%clk 0:00:20.4]} 39... Rc8 {[%clk 0:00:20.6]}
40. Rb3 {[%clk 0:00:20.6]} 40... Rc2 {[%clk 0:00:20.5]} 41. Re3 {[%clk
0:00:20.6]} 41... Ra2 {[%clk 0:00:20.3]} 42. Rd3 {[%clk 0:00:20.5]} 42... Rc6
{[%clk 0:00:20.3]} 43. Ne5 {[%clk 0:00:19.7]} 43... Rcc2 {[%clk 0:00:19.3]} 44.
Rf3 {[%clk 0:00:20.2]} 44... f6 {[%clk 0:00:19.3]} 45. Ng4 {[%clk 0:00:20.5]}
45... f5 {[%clk 0:00:18.3]} 46. Ne3 {[%clk 0:00:21]} 46... Re2 {[%clk
0:00:18.3]} 47. h5 {[%clk 0:00:21.4]} 47... Ra5 {[%clk 0:00:10.2]} 48. hxg6
{[%clk 0:00:21.7]} 48... Kxg6 {[%clk 0:00:11.1]} 49. Kf1 {[%clk 0:00:22.1]}
49... Rb2 {[%clk 0:00:10.9]} 50. Kg2 {[%clk 0:00:22.5]} 50... Rba2 {[%clk
0:00:11]} 51. Nc4 {[%clk 0:00:21.4]} 51... Rc5 {[%clk 0:00:11]} 52. Ne3 {[%clk
0:00:20.6]} 52... Ra8 {[%clk 0:00:10.7]} 53. Rf4 {[%clk 0:00:20.9]} 53... Re8
{[%clk 0:00:10.6]} 54. Rb4 {[%clk 0:00:20.9]} 54... Re6 {[%clk 0:00:10]} 55. Kf3
{[%clk 0:00:21]} 55... Rd6 {[%clk 0:00:09.7]} 56. Rb8 {[%clk 0:00:20.6]} 56...
Ra6 {[%clk 0:00:08.9]} 57. Rg8+ {[%clk 0:00:20.7]} 57... Kf7 {[%clk 0:00:09.1]}
58. Rh8 {[%clk 0:00:20.7]} 58... Kg7 {[%clk 0:00:08.9]} 59. Rd8 {[%clk
0:00:21.3]} 59... Kg6 {[%clk 0:00:08.8]} 60. Rd7 {[%clk 0:00:20.1]} 60... Rb5
{[%clk 0:00:08.2]} 61. Kg2 {[%clk 0:00:17.5]} 61... Rc5 {[%clk 0:00:08.3]} 62.
Nd5 {[%clk 0:00:16.7]} 62... Ra2 {[%clk 0:00:06.4]} 63. Nf4+ {[%clk 0:00:16.8]}
63... Kf6 {[%clk 0:00:06.3]} 64. Kf3 {[%clk 0:00:14.7]} 64... Rc3+ {[%clk
0:00:06]} 65. Kg2 {[%clk 0:00:14.5]} 65... Rcc2 {[%clk 0:00:06.1]} 66. Rd6+
{[%clk 0:00:14.6]} 66... Ke7 {[%clk 0:00:05.6]} 67. Rxh6 {[%clk 0:00:09.7]}
67... Rxf2+ {[%clk 0:00:06.1]} 68. Kg1 {[%clk 0:00:09.8]} 68... Rfb2 {[%clk
0:00:06.7]} 69. Nd5+ {[%clk 0:00:09.6]} 69... Kf7 {[%clk 0:00:06.2]} 70. Rf6+
{[%clk 0:00:09.5]} 70... Kg7 {[%clk 0:00:06.2]} 71. Rxf5 {[%clk 0:00:10.4]}
71... Rd2 {[%clk 0:00:05.2]} 72. Ne3 {[%clk 0:00:09.7]} 72... Rdb2 {[%clk
0:00:04.5]} 73. Nf1 {[%clk 0:00:10.1]} 73... Rg2+ {[%clk 0:00:04]} 74. Kh1
{[%clk 0:00:10.1]} 74... Rgb2 {[%clk 0:00:04.9]} 75. Rf4 {[%clk 0:00:10.1]}
75... Rb1 {[%clk 0:00:05.2]} 76. Kg1 {[%clk 0:00:10.2]} 76... Raa1 {[%clk
0:00:04.4]} 77. Rg4+ {[%clk 0:00:10.7]} 77... Kf6 {[%clk 0:00:04.2]} 78. Rf4+
{[%clk 0:00:11.2]} 78... Kg5 {[%clk 0:00:04.7]} 79. Kg2 {[%clk 0:00:11.7]} 79...
Rb2+ {[%clk 0:00:04.7]} 80. Kg1 {[%clk 0:00:12.2]} 80... Rbb1 {[%clk 0:00:05]}
81. Rf8 {[%clk 0:00:12.1]} 81... Rb2 {[%clk 0:00:04.8]} 82. Rf7 {[%clk
0:00:11.7]} 82... Rbb1 {[%clk 0:00:05]} 83. Kf2 {[%clk 0:00:12]} 83... Rb2+
{[%clk 0:00:05.1]} 84. Kg1 {[%clk 0:00:11.3]} 84... Rbb1 {[%clk 0:00:05.4]} 85.
Rf2 {[%clk 0:00:10.8]} 85... Rc1 {[%clk 0:00:05.3]} 86. Kg2 {[%clk 0:00:10.8]}
86... Re1 {[%clk 0:00:04.3]} 87. Nd2 {[%clk 0:00:11]} 87... Rg1+ {[%clk
0:00:04.5]} 88. Kf3 {[%clk 0:00:11.4]} 88... Rgd1 {[%clk 0:00:05.1]} 89. Ne4+
{[%clk 0:00:11.7]} 89... Kg6 {[%clk 0:00:04.9]} 90. Kf4 {[%clk 0:00:11.6]} 90...
Rd8 {[%clk 0:00:04.8]} 91. Ke3 {[%clk 0:00:11.4]} 91... Re8 {[%clk 0:00:05]} 92.
Rf4 {[%clk 0:00:11.4]} 92... Re1+ {[%clk 0:00:04.8]} 93. Kf3 {[%clk 0:00:11.4]}
93... Rf1+ {[%clk 0:00:05.1]} 94. Kg4 {[%clk 0:00:11.9]} 94... Rxf4+ {[%clk
0:00:03.8]} 95. Kxf4 {[%clk 0:00:12.3]} 95... Rf8+ {[%clk 0:00:04.1]} 96. Kg4
{[%clk 0:00:11]} 96... Re8 {[%clk 0:00:04.7]} 97. Kf4 {[%clk 0:00:11.2]} 97...
Ra8 {[%clk 0:00:05]} 98. g4 {[%clk 0:00:11.5]} 98... Ra4 {[%clk 0:00:05.2]} 99.
Ke5 {[%clk 0:00:11.4]} 99... Ra5+ {[%clk 0:00:04.2]} 100. Kf4 {[%clk 0:00:11.8]}
100... Ra4 {[%clk 0:00:05.1]} 101. Ke5 {[%clk 0:00:12]} 101... Ra5+ {[%clk
0:00:05.4]} 102. Kf4 {[%clk 0:00:12.5]} 102... Ra4 {[%clk 0:00:05.9]} 1/2-1/2

[Event "*** Titled Tuesday Blitz"]
[Site "Chess.com"]
[Date "2020.05.12"]
[Round "3"]
[White "Azatic"]
[Black "MFBerna"]
[Result "1-0"]
[WhiteElo "2581"]
[BlackElo "2383"]
[TimeControl "180+1"]
[EndTime "10:31:09 PDT"]
[Termination "Azatic won on time"]

1. e4 {[%clk 0:03:00.9]} 1... e6 {[%clk 0:02:57.9]} 2. d4 {[%clk 0:02:59.9]}
2... d5 {[%clk 0:02:58.8]} 3. e5 {[%clk 0:03:00.3]} 3... c5 {[%clk 0:02:58.8]}
4. c3 {[%clk 0:03:00.6]} 4... Nc6 {[%clk 0:02:59.2]} 5. Nf3 {[%clk 0:03:00.7]}
5... Qb6 {[%clk 0:02:59.7]} 6. a3 {[%clk 0:03:00.7]} 6... a5 {[%clk 0:02:58.8]}
7. b3 {[%clk 0:02:57.6]} 7... Bd7 {[%clk 0:02:57.2]} 8. Be3 {[%clk 0:02:57.5]}
8... Nh6 {[%clk 0:02:55.5]} 9. Bd3 {[%clk 0:02:57.2]} 9... Be7 {[%clk
0:02:45.3]} 10. O-O {[%clk 0:02:55.9]} 10... cxd4 {[%clk 0:02:36.4]} 11. Nxd4
{[%clk 0:02:26.8]} 11... Nxd4 {[%clk 0:02:34.8]} 12. cxd4 {[%clk 0:02:27.2]}
12... Nf5 {[%clk 0:02:30.1]} 13. Bxf5 {[%clk 0:02:09.8]} 13... exf5 {[%clk
0:02:31]} 14. Nc3 {[%clk 0:02:09.2]} 14... Be6 {[%clk 0:02:30.7]} 15. Na4 {[%clk
0:01:49.6]} 15... Qb5 {[%clk 0:02:29.1]} 16. Nc3 {[%clk 0:01:39.4]} 16... Qb6
{[%clk 0:02:26.2]} 17. a4 {[%clk 0:01:36.8]} 17... O-O {[%clk 0:02:25]} 18. Nb5
{[%clk 0:01:33.8]} 18... Bd7 {[%clk 0:02:17.6]} 19. Qd3 {[%clk 0:01:28]} 19...
Rfc8 {[%clk 0:02:10.7]} 20. Rfc1 {[%clk 0:01:21.5]} 20... Rc6 {[%clk 0:02:03.3]}
21. g3 {[%clk 0:01:02.1]} 21... Rac8 {[%clk 0:01:59.3]} 22. Kg2 {[%clk
0:01:02.1]} 22... h6 {[%clk 0:01:51.1]} 23. h4 {[%clk 0:01:01]} 23... Rxc1
{[%clk 0:01:36.5]} 24. Rxc1 {[%clk 0:01:00.4]} 24... Rc6 {[%clk 0:01:37.1]} 25.
Bd2 {[%clk 0:00:51.3]} 25... Rxc1 {[%clk 0:01:05.1]} 26. Bxc1 {[%clk 0:00:52.2]}
26... Bb4 {[%clk 0:01:00.9]} 27. h5 {[%clk 0:00:34.1]} 27... f4 {[%clk
0:00:46.6]} 28. Bxf4 {[%clk 0:00:26.6]} 28... Qe6 {[%clk 0:00:44.6]} 29. Nc7
{[%clk 0:00:19.5]} 29... Qh3+ {[%clk 0:00:44.1]} 30. Kg1 {[%clk 0:00:19.6]}
30... Bf5 {[%clk 0:00:40.7]} 31. Qf1 {[%clk 0:00:17.8]} 31... Qxh5 {[%clk
0:00:26.7]} 32. f3 {[%clk 0:00:14.6]} 32... Bc3 {[%clk 0:00:22.7]} 33. Nb5
{[%clk 0:00:13.1]} 33... Bb2 {[%clk 0:00:18.2]} 34. g4 {[%clk 0:00:13.3]} 34...
Qg6 {[%clk 0:00:16.1]} 35. Kf2 {[%clk 0:00:12.8]} 35... Bd3 {[%clk 0:00:15.1]}
36. Qd1 {[%clk 0:00:09.3]} 36... Bxb5 {[%clk 0:00:15.2]} 37. axb5 {[%clk
0:00:10.2]} 37... h5 {[%clk 0:00:14.3]} 38. gxh5 {[%clk 0:00:06.3]} 38... Qxh5
{[%clk 0:00:14.7]} 39. Ke3 {[%clk 0:00:06.8]} 39... Qg6 {[%clk 0:00:11.6]} 40.
Qd2 {[%clk 0:00:06.6]} 40... Qb1 {[%clk 0:00:09]} 41. Kf2 {[%clk 0:00:05.8]}
41... Ba1 {[%clk 0:00:07.2]} 42. Be3 {[%clk 0:00:05.4]} 42... Qxb3 {[%clk
0:00:06.9]} 43. Qxa5 {[%clk 0:00:05.9]} 43... Qc2+ {[%clk 0:00:06.6]} 44. Kg3
{[%clk 0:00:06.2]} 44... Bc3 {[%clk 0:00:06.8]} 45. Qd8+ {[%clk 0:00:05.7]}
45... Kh7 {[%clk 0:00:07.3]} 46. Qh4+ {[%clk 0:00:06.5]} 46... Kg8 {[%clk
0:00:06.8]} 47. Qd8+ {[%clk 0:00:06.9]} 47... Kh7 {[%clk 0:00:07.4]} 48. Qe7
{[%clk 0:00:07.4]} 48... Qg6+ {[%clk 0:00:06.6]} 49. Kf2 {[%clk 0:00:07.5]}
49... Qc2+ {[%clk 0:00:06.6]} 50. Kg3 {[%clk 0:00:07.7]} 50... Qf5 {[%clk
0:00:06.1]} 51. Qh4+ {[%clk 0:00:06.9]} 51... Kg8 {[%clk 0:00:06.1]} 52. Qg4
{[%clk 0:00:07.4]} 52... Qxg4+ {[%clk 0:00:04.5]} 53. Kxg4 {[%clk 0:00:08.3]}
53... g6 {[%clk 0:00:03.2]} 54. Kg5 {[%clk 0:00:08.5]} 54... Kg7 {[%clk
0:00:03.4]} 55. f4 {[%clk 0:00:09]} 55... Bb2 {[%clk 0:00:03.3]} 56. f5 {[%clk
0:00:09.1]} 56... gxf5 {[%clk 0:00:03.2]} 57. Kxf5 {[%clk 0:00:10]} 57... Kf8
{[%clk 0:00:02.7]} 58. e6 {[%clk 0:00:10.4]} 58... Ke7 {[%clk 0:00:03.6]} 59.
exf7 {[%clk 0:00:10.7]} 59... Kxf7 {[%clk 0:00:04.5]} 60. Ke5 {[%clk 0:00:11.2]}
60... Ke7 {[%clk 0:00:04.5]} 61. Kxd5 {[%clk 0:00:11.7]} 61... Kd7 {[%clk
0:00:05.4]} 62. Bf4 {[%clk 0:00:12]} 62... Ba3 {[%clk 0:00:05]} 63. Be5 {[%clk
0:00:12]} 63... Bb4 {[%clk 0:00:04.7]} 64. Bg3 {[%clk 0:00:12.5]} 64... Ba3
{[%clk 0:00:05]} 65. Bf2 {[%clk 0:00:11.3]} 65... Bb4 {[%clk 0:00:05.1]} 66. Be3
{[%clk 0:00:11.7]} 66... Ba3 {[%clk 0:00:05.4]} 67. Bd2 {[%clk 0:00:12]} 67...
Bd6 {[%clk 0:00:05.4]} 68. Ba5 {[%clk 0:00:11.6]} 68... Ba3 {[%clk 0:00:05.1]}
69. Bb6 {[%clk 0:00:12]} 69... Bb4 {[%clk 0:00:05.1]} 70. Bc5 {[%clk 0:00:12.1]}
70... Bc3 {[%clk 0:00:05.6]} 71. Kc4 {[%clk 0:00:12.4]} 71... Be1 {[%clk
0:00:05.5]} 72. Bb4 {[%clk 0:00:12.5]} 72... Bf2 {[%clk 0:00:05.5]} 73. Kc5
{[%clk 0:00:12.6]} 73... Bg1 {[%clk 0:00:05.7]} 74. Bc3 {[%clk 0:00:12.8]} 74...
Bf2 {[%clk 0:00:05.7]} 75. Kb6 {[%clk 0:00:12.6]} 75... Kc8 {[%clk 0:00:06.3]}
76. Bb2 {[%clk 0:00:11.7]} 76... Bg1 {[%clk 0:00:06.5]} 77. Bc3 {[%clk 0:00:11]}
77... Bf2 {[%clk 0:00:06.8]} 78. Ka7 {[%clk 0:00:11.3]} 78... Bg1 {[%clk
0:00:06]} 79. b6 {[%clk 0:00:11.6]} 79... Bf2 {[%clk 0:00:06.1]} 80. Ka8 {[%clk
0:00:11.8]} 80... Bg1 {[%clk 0:00:06]} 81. Ka7 {[%clk 0:00:12.1]} 81... Bf2
{[%clk 0:00:06.3]} 82. d5 {[%clk 0:00:12.6]} 82... Bc5 {[%clk 0:00:05.1]} 83.
Be5 {[%clk 0:00:12.5]} 83... Bb4 {[%clk 0:00:05.1]} 84. Bc7 {[%clk 0:00:12.1]}
84... Bc5 {[%clk 0:00:04.5]} 85. Bf4 {[%clk 0:00:11.9]} 85... Bb4 {[%clk
0:00:04.6]} 86. Be3 {[%clk 0:00:11.3]} 86... Ba3 {[%clk 0:00:04.1]} 87. Bd4
{[%clk 0:00:10.7]} 87... Bd6 {[%clk 0:00:04.2]} 88. Bc3 {[%clk 0:00:10.9]} 88...
Bb8+ {[%clk 0:00:04.3]} 89. Ka8 {[%clk 0:00:10.6]} 89... Bd6 {[%clk 0:00:04.8]}
90. Bd4 {[%clk 0:00:11.1]} 90... Bb4 {[%clk 0:00:04.6]} 91. Bg1 {[%clk
0:00:11.5]} 91... Bd6 {[%clk 0:00:04.7]} 92. Bf2 {[%clk 0:00:11.4]} 92... Be5
{[%clk 0:00:04.8]} 93. Bc5 {[%clk 0:00:11.2]} 93... Bf4 {[%clk 0:00:04.9]} 94.
d6 {[%clk 0:00:11.6]} 94... Bg3 {[%clk 0:00:04.9]} 95. d7+ {[%clk 0:00:10.8]}
95... Kxd7 {[%clk 0:00:04.7]} 96. Kxb7 {[%clk 0:00:11.3]} 96... Bh2 {[%clk
0:00:04.6]} 97. Ka8 {[%clk 0:00:10.9]} 97... Kc6 {[%clk 0:00:04.2]} 98. Bf2
{[%clk 0:00:09.8]} 98... Bd6 {[%clk 0:00:03.5]} 99. b7 {[%clk 0:00:09.9]} 99...
Bc7 {[%clk 0:00:03.6]} 100. Ba7 {[%clk 0:00:10.1]} 100... Bd6 {[%clk 0:00:04]}
101. Bb8 {[%clk 0:00:10.5]} 101... Bc5 {[%clk 0:00:04.2]} 102. Bh2 {[%clk
0:00:10.7]} 1-0

[Event "*** Titled Tuesday Blitz"]
[Site "Chess.com"]
[Date "2020.05.12"]
[Round "4"]
[White "AleksanderHnydiuk"]
[Black "Mitronych"]
[Result "1-0"]
[WhiteElo "2583"]
[BlackElo "2291"]
[TimeControl "180+1"]
[EndTime "10:33:02 PDT"]
[Termination "AleksanderHnydiuk won by resignation"]

1. Nf3 {[%clk 0:03:00.9]} 1... Nf6 {[%clk 0:02:58.8]} 2. c4 {[%clk 0:03:00.9]}
2... g6 {[%clk 0:02:58.9]} 3. d4 {[%clk 0:03:00.3]} 3... Bg7 {[%clk 0:02:59.8]}
4. g3 {[%clk 0:03:00.3]} 4... O-O {[%clk 0:02:59.8]} 5. Bg2 {[%clk 0:03:00.8]}
5... d6 {[%clk 0:03:00.7]} 6. Nc3 {[%clk 0:03:01.1]} 6... Nbd7 {[%clk
0:03:01.6]} 7. O-O {[%clk 0:03:01]} 7... a6 {[%clk 0:03:00.2]} 8. e4 {[%clk
0:02:54.4]} 8... Rb8 {[%clk 0:02:59.4]} 9. Qe2 {[%clk 0:02:37.3]} 9... b5 {[%clk
0:02:55]} 10. e5 {[%clk 0:02:35.6]} 10... Ne8 {[%clk 0:02:54.5]} 11. e6 {[%clk
0:02:30.4]} 11... fxe6 {[%clk 0:02:49.6]} 12. Ng5 {[%clk 0:02:30.1]} 12... Kh8
{[%clk 0:02:50.5]} 13. Nxe6 {[%clk 0:02:29.2]} 13... Nef6 {[%clk 0:02:42.4]} 14.
Nxd8 {[%clk 0:02:28.2]} 14... Rxd8 {[%clk 0:02:43.3]} 1-0

[Event "*** Titled Tuesday Blitz"]
[Site "Chess.com"]
[Date "2020.05.12"]
[Round "4"]
[White "jaskol95"]
[Black "Nikolaj_6"]
[Result "0-1"]
[WhiteElo "2257"]
[BlackElo "2565"]
[TimeControl "180+1"]
[EndTime "10:33:38 PDT"]
[Termination "Nikolaj_6 won by resignation"]

1. d4 {[%clk 0:02:39.8]} 1... Nf6 {[%clk 0:02:59.5]} 2. Bf4 {[%clk 0:02:34.6]}
2... g6 {[%clk 0:02:59.2]} 3. Nc3 {[%clk 0:02:34.4]} 3... d5 {[%clk 0:02:58.8]}
4. e3 {[%clk 0:02:34.8]} 4... a6 {[%clk 0:02:58.8]} 5. h4 {[%clk 0:02:19.4]}
5... h5 {[%clk 0:02:58.1]} 6. Nf3 {[%clk 0:02:19.2]} 6... Bg7 {[%clk 0:02:52.4]}
7. Be2 {[%clk 0:02:18.4]} 7... c5 {[%clk 0:02:50.7]} 8. dxc5 {[%clk 0:02:12]}
8... Qa5 {[%clk 0:02:49.9]} 9. O-O {[%clk 0:02:05.9]} 9... Qxc5 {[%clk
0:02:49.5]} 10. Be5 {[%clk 0:02:06.4]} 10... Nbd7 {[%clk 0:02:47.7]} 11. Nxd5
{[%clk 0:02:00.6]} 11... Nxe5 {[%clk 0:02:45.3]} 12. Nxf6+ {[%clk 0:01:45.2]}
12... Bxf6 {[%clk 0:02:42.4]} 0-1

[Event "*** Titled Tuesday Blitz"]
[Site "Chess.com"]
[Date "2020.05.12"]
[Round "4"]
[White "the_drake"]
[Black "Everyfishknows"]
[Result "1/2-1/2"]
[WhiteElo "2209"]
[BlackElo "2378"]
[TimeControl "180+1"]
[EndTime "10:33:57 PDT"]
[Termination "Game drawn by agreement"]

1. e4 {[%clk 0:03:00.9]} 1... e5 {[%clk 0:02:59.8]} 2. Nf3 {[%clk 0:02:58.3]}
2... Nc6 {[%clk 0:02:59]} 3. Bc4 {[%clk 0:02:58.2]} 3... Nf6 {[%clk 0:02:58.8]}
4. d3 {[%clk 0:02:57.4]} 4... Be7 {[%clk 0:02:58.6]} 5. c3 {[%clk 0:02:57.8]}
5... O-O {[%clk 0:02:58.4]} 6. Bb3 {[%clk 0:02:57.7]} 6... d5 {[%clk 0:02:58.7]}
7. Bg5 {[%clk 0:02:57.1]} 7... dxe4 {[%clk 0:02:58.2]} 8. Bxf6 {[%clk
0:02:57.2]} 8... Bxf6 {[%clk 0:02:58.6]} 9. dxe4 {[%clk 0:02:57]} 9... Qxd1+
{[%clk 0:02:58.7]} 10. Bxd1 {[%clk 0:02:57.5]} 10... Be6 {[%clk 0:02:58.9]} 11.
Nbd2 {[%clk 0:02:54.1]} 11... Rfd8 {[%clk 0:02:58.9]} 12. Be2 {[%clk 0:02:54.3]}
12... g6 {[%clk 0:02:48.3]} 13. O-O-O {[%clk 0:02:49.3]} 13... Be7 {[%clk
0:02:48.4]} 14. Bc4 {[%clk 0:02:46.5]} 14... Bxc4 {[%clk 0:02:46.4]} 15. Nxc4
{[%clk 0:02:38.6]} 15... f6 {[%clk 0:02:45.4]} 16. Kc2 {[%clk 0:02:36.5]} 16...
Kf7 {[%clk 0:02:44.2]} 17. Rhe1 {[%clk 0:02:28.7]} 17... Ke6 {[%clk 0:02:44.3]}
18. Ne3 {[%clk 0:02:26.3]} 18... Bc5 {[%clk 0:02:42.7]} 19. Nd2 {[%clk
0:02:22.1]} 19... Bxe3 {[%clk 0:02:41.5]} 20. Rxe3 {[%clk 0:02:21.7]} 20... Rd7
{[%clk 0:02:41]} 21. Nb3 {[%clk 0:02:21.1]} 21... b6 {[%clk 0:02:39]} 22. Red3
{[%clk 0:02:19.7]} 22... Rad8 {[%clk 0:02:36.9]} 23. f3 {[%clk 0:02:19]} 23...
Rxd3 {[%clk 0:02:36.4]} 24. Rxd3 {[%clk 0:02:19.9]} 24... Rxd3 {[%clk
0:02:36.8]} 25. Kxd3 {[%clk 0:02:20.7]} 25... a5 {[%clk 0:02:37]} 26. Kc4 {[%clk
0:02:16.6]} 1/2-1/2

[Event "*** Titled Tuesday Blitz"]
[Site "Chess.com"]
[Date "2020.05.12"]
[Round "4"]
[White "ulkaf961"]
[Black "Kimster98"]
[Result "0-1"]
[WhiteElo "2191"]
[BlackElo "2561"]
[TimeControl "180+1"]
[EndTime "10:34:13 PDT"]
[Termination "Kimster98 won by resignation"]

1. b3 {[%clk 0:03:00.9]} 1... e5 {[%clk 0:02:55]} 2. Bb2 {[%clk 0:03:00.1]} 2...
Nc6 {[%clk 0:02:55.6]} 3. g3 {[%clk 0:03:00.1]} 3... f5 {[%clk 0:02:53]} 4. Bg2
{[%clk 0:02:59.9]} 4... d6 {[%clk 0:02:53.2]} 5. e3 {[%clk 0:02:59.3]} 5... Nf6
{[%clk 0:02:52.9]} 6. Ne2 {[%clk 0:02:59.3]} 6... g6 {[%clk 0:02:50.9]} 7. O-O
{[%clk 0:02:58.6]} 7... Bg7 {[%clk 0:02:51.1]} 8. f4 {[%clk 0:02:54.5]} 8... O-O
{[%clk 0:02:50.2]} 9. Bxc6 {[%clk 0:02:44.9]} 9... bxc6 {[%clk 0:02:48.6]} 10.
fxe5 {[%clk 0:02:44.7]} 10... Ng4 {[%clk 0:02:43.2]} 11. Nd4 {[%clk 0:02:15.6]}
11... dxe5 {[%clk 0:02:22.2]} 12. Nxc6 {[%clk 0:02:06]} 12... Qd6 {[%clk
0:02:20.2]} 13. Na5 {[%clk 0:02:05.1]} 13... Qd5 {[%clk 0:02:06.3]} 14. Nc4
{[%clk 0:02:01.2]} 14... Bb7 {[%clk 0:02:04]} 0-1

[Event "*** Titled Tuesday Blitz"]
[Site "Chess.com"]
[Date "2020.05.12"]
[Round "4"]
[White "Trickov"]
[Black "Ariadna_Atreides"]
[Result "1-0"]
[WhiteElo "2288"]
[BlackElo "2074"]
[TimeControl "180+1"]
[EndTime "10:34:16 PDT"]
[Termination "Trickov won by resignation"]

1. d4 {[%clk 0:03:00.9]} 1... e6 {[%clk 0:02:59.5]} 2. Nf3 {[%clk 0:03:00.4]}
2... Nf6 {[%clk 0:02:57.2]} 3. g3 {[%clk 0:03:00.4]} 3... c5 {[%clk 0:02:55.1]}
4. Bg2 {[%clk 0:03:00]} 4... Nc6 {[%clk 0:02:55.3]} 5. O-O {[%clk 0:02:59.9]}
5... cxd4 {[%clk 0:02:55.5]} 6. Nxd4 {[%clk 0:02:58.7]} 6... Bc5 {[%clk
0:02:56.1]} 7. Nb3 {[%clk 0:02:58.3]} 7... Be7 {[%clk 0:02:53.9]} 8. c4 {[%clk
0:02:58.1]} 8... O-O {[%clk 0:02:49.4]} 9. Nc3 {[%clk 0:02:58.1]} 9... b6 {[%clk
0:02:47.4]} 10. Bf4 {[%clk 0:02:51.8]} 10... Bb7 {[%clk 0:02:46]} 11. Bd6 {[%clk
0:02:49.2]} 11... Bxd6 {[%clk 0:02:42.8]} 12. Qxd6 {[%clk 0:02:48.3]} 12... Ne8
{[%clk 0:02:41]} 13. Qd2 {[%clk 0:02:46.2]} 13... Qe7 {[%clk 0:02:35.9]} 14.
Rfd1 {[%clk 0:02:42]} 14... Rd8 {[%clk 0:02:27]} 15. Nd4 {[%clk 0:02:22.3]}
15... a6 {[%clk 0:02:08.3]} 16. Nxc6 {[%clk 0:02:15]} 16... Bxc6 {[%clk
0:02:03.5]} 17. Bxc6 {[%clk 0:02:12.1]} 17... dxc6 {[%clk 0:02:03.1]} 18. Qxd8
{[%clk 0:02:09.7]} 1-0

[Event "*** Titled Tuesday Blitz"]
[Site "Chess.com"]
[Date "2020.05.12"]
[Round "4"]
[White "GeorgMeier"]
[Black "Koksik_13"]
[Result "1-0"]
[WhiteElo "3022"]
[BlackElo "2554"]
[TimeControl "180+1"]
[EndTime "10:34:17 PDT"]
[Termination "GeorgMeier won by checkmate"]

1. Nf3 {[%clk 0:03:00.9]} 1... d5 {[%clk 0:02:46.9]} 2. g3 {[%clk 0:03:01.2]}
2... Nf6 {[%clk 0:02:46.1]} 3. Bg2 {[%clk 0:03:01.3]} 3... g6 {[%clk 0:02:46.2]}
4. d4 {[%clk 0:02:55.7]} 4... Bg7 {[%clk 0:02:46.3]} 5. O-O {[%clk 0:02:53.2]}
5... Kf8 {[%clk 0:02:46.6]} 6. c4 {[%clk 0:02:52.7]} 6... c6 {[%clk 0:02:46.1]}
7. cxd5 {[%clk 0:02:51.9]} 7... cxd5 {[%clk 0:02:47]} 8. Nc3 {[%clk 0:02:51.8]}
8... h6 {[%clk 0:02:47.2]} 9. Ne5 {[%clk 0:02:45.4]} 9... Kg8 {[%clk 0:02:41.1]}
10. Bf4 {[%clk 0:02:41.7]} 10... Kh7 {[%clk 0:02:39.2]} 11. Nxf7 {[%clk
0:02:41]} 11... Qf8 {[%clk 0:02:36.8]} 12. Nxh8 {[%clk 0:02:38.4]} 12... Bxh8
{[%clk 0:02:37.7]} 13. Nxd5 {[%clk 0:02:34.7]} 13... Nc6 {[%clk 0:02:36.2]} 14.
Nc7 {[%clk 0:02:30.3]} 14... Rb8 {[%clk 0:02:34]} 15. d5 {[%clk 0:02:29.6]}
15... Nd8 {[%clk 0:02:28.5]} 16. Ne6 {[%clk 0:02:24.9]} 16... Nxe6 {[%clk
0:02:28.4]} 17. Bxb8 {[%clk 0:02:24.7]} 17... Ng5 {[%clk 0:02:28.6]} 18. Bxa7
{[%clk 0:02:20.1]} 18... Ng4 {[%clk 0:02:23.3]} 19. Bd4 {[%clk 0:02:12.2]} 19...
Nxh2 {[%clk 0:02:18.5]} 20. Kxh2 {[%clk 0:02:08.5]} 20... Qf5 {[%clk 0:02:17]}
21. Bxh8 {[%clk 0:02:05.2]} 21... Nh3 {[%clk 0:02:15.7]} 22. Qd4 {[%clk
0:02:03.1]} 22... Qxf2 {[%clk 0:02:14.3]} 23. Qg7# {[%clk 0:02:02.2]} 1-0